bitfinex-derivatives/quotes_BTCF0:USTF0_20251208
["timestamp","ask_amount","ask_price","bid_price","bid_amount"]
[1765223415908,0.0687584,90340.0,90339.0,0.00716607]
[1765223416309,0.0687584,90340.0,90339.0,0.03589607]
[1765223416501,0.0687584,90340.0,90339.0,0.06293607]
[1765223416913,0.0406675,90347.0,90346.0,0.05577]
[1765223417106,0.0687575,90347.0,90346.0,0.05577]
[1765223418106,0.0697575,90347.0,90346.0,0.05577]
[1765223418408,0.0697575,90347.0,90346.0,0.02873]
[1765223418610,0.0697575,90347.0,90346.0,0.03373]
[1765223419002,0.0697575,90347.0,90346.0,0.005]
[1765223419414,0.0697575,90347.0,90346.0,0.06077]
[1765223419907,0.0697575,90347.0,90346.0,0.005]
[1765223425222,0.09429121,90347.0,90346.0,0.005]
[1765223434016,0.09429121,90347.0,90346.0,0.06077]
[1765223435622,0.0697575,90347.0,90346.0,0.005]
[1765223435823,0.0697575,90347.0,90339.0,0.00016607]
[1765223435824,0.0687584,90340.0,90339.0,7e-08]
[1765223436031,0.0687613,90316.0,90315.0,0.02983724]
[1765223436217,0.0687613,90316.0,90315.0,0.04266052]
[1765223436417,0.09342576,90316.0,90315.0,0.00110724]
[1765223436822,0.0850618,90312.0,90291.0,0.0110743]
[1765223437128,0.0296,90293.0,90292.0,0.34389]
[1765223437425,0.05769,90301.0,90300.0,0.05577]
[1765223438123,0.05778191,90301.0,90300.0,0.05577]
[1765223438323,0.02969191,90301.0,90300.0,0.05577]
[1765223438528,9.191e-05,90301.0,90300.0,0.06377]
[1765223439123,0.02969191,90301.0,90300.0,0.06377]
[1765223439613,0.02969191,90301.0,90300.0,0.06477]
[1765223440330,0.02969191,90301.0,90300.0,0.06177]
[1765223440529,0.02969191,90301.0,90300.0,0.06277]
[1765223441725,0.06885501,90301.0,90300.0,0.06277]
[1765223442613,0.06885501,90301.0,90300.0,0.06177]
[1765223442819,0.06885501,90301.0,90300.0,0.06277]
[1765223443015,9.191e-05,90301.0,90300.0,0.06277]
[1765223445428,0.02874191,90301.0,90300.0,0.06277]
[1765223445833,9.191e-05,90301.0,90300.0,0.06277]
[1765223447029,0.06786501,90301.0,90300.0,0.06277]
[1765223448135,0.06786501,90301.0,90300.0,0.007]
[1765223448329,0.06786501,90301.0,90300.0,0.03475]
[1765223449331,0.06786501,90301.0,90300.0,0.06379]
[1765223449834,0.06786501,90301.0,90300.0,0.05779]
[1765223450035,0.06786501,90301.0,90300.0,0.06379]
[1765223450425,0.06786501,90301.0,90300.0,0.05779]
[1765223450738,0.06786501,90301.0,90300.0,0.06379]
[1765223451539,0.06786501,90301.0,90300.0,0.06279]
[1765223451737,0.06786501,90301.0,90300.0,0.06379]
[1765223453129,0.06786501,90301.0,90300.0,0.06279]
[1765223453330,0.06786501,90301.0,90300.0,0.06379]
[1765223454034,0.06786501,90301.0,90300.0,0.007]
[1765223454341,0.0677752,90284.0,90283.0,0.02791607]
[1765223454538,0.0677752,90284.0,90283.0,0.05695607]
[1765223455038,0.0567,90284.0,90283.0,0.05695607]
[1765223455438,0.0567,90284.0,90283.0,0.06995823]
[1765223455736,0.0677746,90290.0,90289.0,0.05679]
[1765223456439,0.0677752,90284.0,90283.0,0.07595823]
[1765223456835,0.0677752,90284.0,90283.0,0.06995823]
[1765223457724,0.0677752,90284.0,90283.0,0.05695607]
[1765223457925,0.0677752,90284.0,90283.0,0.02791607]
[1765223458442,0.0677752,90284.0,90283.0,0.00116607]
[1765223459039,0.0677752,90284.0,90283.0,0.00316607]
[1765223459536,0.0799567,90272.0,90271.0,0.01283137]
[1765223459731,0.0567,90264.0,90263.0,0.0110777]
[1765223459931,0.0567,90264.0,90263.0,0.0678677]
[1765223460331,0.0567,90264.0,90263.0,0.06965829]
[1765223462239,0.0567,90264.0,90263.0,0.07465829]
[1765223462439,0.0567,90264.0,90263.0,0.07565829]
[1765223464928,0.0110771,90269.0,90265.0,0.04499]
[1765223465128,0.0391471,90269.0,90268.0,0.05514]
[1765223465738,0.0687071,90269.0,90268.0,0.05514]
[1765223466831,0.0391471,90269.0,90268.0,0.05614]
[1765223467340,0.0687071,90269.0,90268.0,0.05614]
[1765223467645,0.00016616,90273.0,90272.0,0.0767367]
[1765223467826,0.0110747,90289.0,90283.0,0.0662153]
[1765223468033,0.0110738,90296.0,90283.0,0.0662153]
[1765223468343,0.0110737,90297.0,90283.0,0.0662153]
[1765223468635,0.0110742,90293.0,90283.0,0.0662153]
[1765223468842,0.00016594,90293.0,90283.0,0.0662153]
[1765223469232,0.0110744,90292.0,90283.0,0.0662153]
[1765223469435,0.00109839,90284.0,90283.0,0.0662153]
[1765223469632,0.00209839,90284.0,90283.0,0.0662153]
[1765223470437,0.00209839,90284.0,90283.0,0.15578234]
[1765223470630,0.00209839,90284.0,90283.0,0.0662153]
[1765223471238,0.00209839,90284.0,90283.0,0.15589751]
[1765223471452,0.00209839,90284.0,90283.0,0.0662153]
[1765223472647,0.05986839,90284.0,90283.0,0.0662153]
[1765223472846,0.0110729,90303.0,90288.0,0.0110747]
[1765223473147,0.0110746,90289.0,90288.0,0.05792]
[1765223474049,0.0110746,90289.0,90288.0,0.06192]
[1765223474231,0.0110746,90289.0,90288.0,0.06292]
[1765223474638,0.0110741,90294.0,90288.0,0.06292]
[1765223474838,0.0110741,90294.0,90293.0,0.07578]
[1765223477045,0.05965936,90316.0,90314.0,0.01786]
[1765223477248,0.0110723,90308.0,90307.0,0.07578]
[1765223477451,0.03583343,90308.0,90307.0,0.07578]
[1765223477841,0.03583343,90308.0,90307.0,0.04774]
[1765223478142,0.03583343,90308.0,90306.0,0.00016616]
[1765223478345,0.02476113,90307.0,90306.0,0.00016616]
[1765223479150,0.02476113,90307.0,90293.0,0.01786]
[1765223479151,0.42476113,90307.0,90293.0,0.01786]
[1765223479345,0.011074,90294.0,90293.0,0.07578]
[1765223480450,0.011074,90294.0,90293.0,0.04774]
[1765223480643,0.011074,90294.0,90293.0,0.07778]
[1765223481153,0.011074,90294.0,90293.0,0.07878]
[1765223481354,0.00016616,90303.0,90293.0,0.07878]
[1765223481551,0.0110733,90300.0,90296.0,0.0110736]
[1765223481855,0.02478213,90299.0,90298.0,0.05792]
[1765223483246,0.02478213,90299.0,90298.0,0.06192]
[1765223484355,0.02478213,90299.0,90298.0,0.06292]
[1765223486146,0.02478213,90299.0,90298.0,0.05892]
[1765223486359,0.02478213,90299.0,90298.0,0.06192]
[1765223486555,0.02478213,90299.0,90298.0,0.06292]
[1765223487057,0.03585553,90299.0,90298.0,0.06292]
[1765223487961,0.02478213,90299.0,90298.0,0.06292]
[1765223489650,0.00016616,90303.0,90302.0,0.068993]
[1765223490051,0.0110716,90314.0,90313.0,0.05792]
[1765223490459,0.03585523,90314.0,90313.0,0.05792]
[1765223492160,0.03585513,90314.0,90313.0,0.05792]
[1765223492556,0.03685513,90314.0,90313.0,0.05792]
[1765223494967,0.0110726,90305.0,90304.0,0.00016616]
[1765223495554,0.03587052,90305.0,90304.0,0.00016616]
[1765223496268,0.03587052,90305.0,90304.0,0.00216616]
[1765223497062,0.03587052,90305.0,90304.0,0.00016616]
[1765223497259,0.03587052,90305.0,90304.0,0.00216616]
[1765223498569,0.03587052,90305.0,90304.0,0.00016616]
[1765223498777,0.03587052,90305.0,90304.0,0.00116616]
[1765223500160,0.03687052,90305.0,90304.0,0.00116616]
[1765223500771,0.03687052,90305.0,90304.0,0.03104616]
[1765223501469,0.03587052,90305.0,90304.0,0.05908616]
[1765223501770,0.03687052,90305.0,90304.0,0.05908616]
[1765223503469,0.02579792,90305.0,90304.0,0.05908616]
[1765223505462,0.03687052,90305.0,90304.0,0.05908616]
[1765223510466,0.02579792,90305.0,90304.0,0.05908616]
[1765223514369,0.02579792,90305.0,90304.0,0.00116616]
[1765223514971,0.02579792,90305.0,90304.0,0.05954616]
[1765223515377,0.02579792,90305.0,90304.0,0.03028616]
[1765223515572,0.02579792,90305.0,90304.0,0.00116616]
[1765223515981,0.02579792,90305.0,90304.0,0.03028616]
[1765223516179,0.02579792,90305.0,90304.0,0.05954616]
[1765223519880,0.02579792,90305.0,90304.0,0.07061896]
[1765223521381,0.55450118,90443.0,90317.0,0.0567]
[1765223521382,0.0110711,90318.0,90317.0,0.0567]
[1765223521680,0.0344408,90321.0,90320.0,0.02785]
[1765223521875,0.0344403,90325.0,90324.0,0.0567]
[1765223522272,0.0578103,90325.0,90324.0,0.0567]
[1765223522884,0.04674,90316.0,90315.0,0.05686607]
[1765223523188,0.0578113,90316.0,90315.0,0.00016607]
[1765223524082,0.0598113,90316.0,90315.0,0.00016607]
[1765223524284,0.0618113,90316.0,90315.0,0.00016607]
[1765223524583,0.0598113,90316.0,90315.0,0.00016607]
[1765223524779,0.0608113,90316.0,90315.0,0.00016607]
[1765223525789,0.11947066,90316.0,90315.0,0.00016607]
[1765223525986,0.0598113,90316.0,90315.0,0.00016607]
[1765223526485,0.0588113,90316.0,90315.0,0.00016607]
[1765223526686,0.0598113,90316.0,90315.0,0.00016607]
[1765223527282,0.0588113,90316.0,90315.0,0.00016607]
[1765223527482,0.0598113,90316.0,90315.0,0.00016607]
[1765223527679,0.0110739,90295.0,90294.0,0.0567]
[1765223527879,0.0574739,90295.0,90294.0,0.0567]
[1765223528788,0.0574739,90295.0,90294.0,0.0577]
[1765223529691,0.0574739,90295.0,90285.0,0.00016607]
[1765223529989,0.057475,90286.0,90285.0,0.00016607]
[1765223532993,0.058475,90286.0,90285.0,0.00016607]
[1765223533396,0.08284486,90286.0,90285.0,0.00016607]
[1765223533585,0.08184486,90286.0,90285.0,0.00016607]
[1765223533788,0.08284486,90286.0,90285.0,0.00016607]
[1765223533985,0.08384486,90286.0,90285.0,0.00016607]
[1765223534395,0.08284486,90286.0,90285.0,0.00016607]
[1765223534588,0.08384486,90286.0,90285.0,0.00016607]
[1765223534984,0.08284486,90286.0,90285.0,0.00016607]
[1765223535186,0.08384486,90286.0,90285.0,0.00016607]
[1765223536101,0.08284486,90286.0,90285.0,0.00016607]
[1765223536398,0.08384486,90286.0,90285.0,0.00016607]
[1765223537798,0.0574766,90273.0,90272.0,0.07186]
[1765223540102,0.0574766,90273.0,90272.0,0.07486]
[1765223540600,0.0574766,90273.0,90272.0,0.07286]
[1765223540902,0.0574766,90273.0,90272.0,0.07486]
[1765223541102,0.0342766,90273.0,90272.0,0.07486]
[1765223541401,0.0110762,90276.0,90272.0,0.01929]
[1765223541588,0.00016616,90282.0,90272.0,0.01929]
[1765223541589,0.0110756,90281.0,90280.0,0.05457]
[1765223542194,0.0342756,90281.0,90280.0,0.05457]
[1765223542402,0.0574756,90281.0,90280.0,0.05457]
[1765223542588,0.0574766,90273.0,90272.0,0.07386]
[1765223542788,0.23022179,90282.0,90281.0,0.05457]
[1765223543001,0.03557367,90282.0,90281.0,0.05457]
[1765223543200,0.01124166,90282.0,90281.0,0.05457]
[1765223543400,0.00016616,90282.0,90281.0,0.05457]
[1765223543907,0.05764166,90282.0,90281.0,0.05457]
[1765223544112,0.00016616,90282.0,90281.0,0.05757]
[1765223544594,0.00016616,90282.0,90281.0,0.05857]
[1765223544794,0.00016616,90282.0,90281.0,0.05957]
[1765223546503,0.04656616,90282.0,90281.0,0.05957]
[1765223546701,0.07090019,90282.0,90281.0,0.005]
[1765223546905,0.07090019,90282.0,90281.0,0.05957]
[1765223547094,0.04656616,90282.0,90281.0,0.05957]
[1765223547290,0.04656616,90282.0,90281.0,0.05857]
[1765223547504,0.04656616,90282.0,90281.0,0.05957]
[1765223548108,0.04656616,90282.0,90281.0,0.05857]
[1765223548405,0.0709017,90282.0,90281.0,0.05857]
[1765223548602,0.04656616,90282.0,90281.0,0.05857]
[1765223548907,0.04656616,90282.0,90281.0,0.05657]
[1765223549405,0.07090232,90282.0,90281.0,0.05457]
[1765223549607,0.07090232,90282.0,90281.0,0.05657]
[1765223551396,0.02450232,90282.0,90281.0,0.05657]
[1765223551604,0.00016616,90282.0,90281.0,0.05657]
[1765223554111,0.0342741,90294.0,90293.0,0.0722]
[1765223554300,0.05864622,90294.0,90293.0,0.0722]
[1765223554696,0.02437212,90294.0,90293.0,0.0722]
[1765223555410,0.02537212,90294.0,90293.0,0.0722]
[1765223555614,0.02637212,90294.0,90293.0,0.0722]
[1765223556698,0.02537212,90294.0,90293.0,0.0742]
[1765223557301,0.02437212,90294.0,90293.0,0.0742]
[1765223557501,0.0110733,90300.0,90299.0,0.05457]
[1765223557909,0.0354646,90300.0,90299.0,0.05457]
[1765223558118,0.0243913,90300.0,90299.0,0.05457]
[1765223558506,0.0243913,90300.0,90299.0,0.06692063]
[1765223558710,0.0253913,90300.0,90299.0,0.06692063]
[1765223559311,0.001,90300.0,90299.0,0.06692063]
[1765223559916,0.001,90300.0,90299.0,0.06992063]
[1765223560109,0.00016598,90303.0,90302.0,0.05457]
[1765223560706,0.18407233,90312.0,90311.0,0.05457]
[1765223561010,0.23047233,90320.0,90319.0,0.05457]
[1765223561317,0.0342708,90320.0,90319.0,0.05457]
[1765223561917,0.0574708,90320.0,90319.0,0.05457]
[1765223562412,0.0594708,90320.0,90319.0,0.05457]
[1765223562809,0.0362708,90320.0,90319.0,0.05457]
[1765223563519,0.0594708,90320.0,90319.0,0.05457]
[1765223564406,0.0614708,90320.0,90319.0,0.05457]
[1765223565516,0.0464,90315.0,90314.0,0.07385]
[1765223566309,0.004,90320.0,90319.0,0.05622]
[1765223566722,0.002,90320.0,90319.0,0.05622]
[1765223567217,0.00110694,90340.0,90339.0,0.05622]
[1765223567405,0.05128878,90342.0,90341.0,0.05622]
[1765223568215,0.0342674,90348.0,90347.0,0.05622]
[1765223568512,0.0574674,90348.0,90347.0,0.05622]
[1765223570021,0.0594674,90348.0,90347.0,0.05622]
[1765223570722,0.0624674,90348.0,90347.0,0.05622]
[1765223571925,0.0514,90348.0,90347.0,0.05622]
[1765223573414,0.0574688,90336.0,90335.0,0.07317]
[1765223573809,0.0574695,90331.0,90330.0,0.05638606]
[1765223574016,0.0574695,90331.0,90330.0,0.00016606]
[1765223574621,0.0574695,90331.0,90330.0,0.02890606]
[1765223575414,0.0594695,90331.0,90330.0,0.00016606]
[1765223575610,0.0594695,90331.0,90330.0,0.05638606]
[1765223576016,0.0614695,90331.0,90330.0,0.05638606]
[1765223578021,0.0614695,90331.0,90330.0,0.00016606]
[1765223578226,0.08573312,90331.0,90330.0,0.00016606]
[1765223580735,0.08573312,90331.0,90330.0,0.05862606]
[1765223581231,0.004,90331.0,90330.0,0.05862606]
[1765223581429,0.0654665,90355.0,90354.0,0.05846]
[1765223581639,0.089754,90355.0,90354.0,0.05846]
[1765223581929,0.0654671,90350.0,90349.0,0.04584]
[1765223582120,0.0544,90343.0,90342.0,0.0758]
[1765223582321,0.0897555,90343.0,90342.0,0.0758]
[1765223582520,0.0353555,90343.0,90342.0,0.0758]
[1765223582723,0.0625555,90343.0,90342.0,0.0758]
[1765223583125,0.0242875,90343.0,90342.0,0.0758]
[1765223583332,0.0110676,90346.0,90345.0,0.05846]
[1765223583530,0.0654676,90346.0,90345.0,0.05846]
[1765223583735,0.08976587,90346.0,90345.0,0.05846]
[1765223584328,0.03536587,90346.0,90345.0,0.05846]
[1765223584733,0.03536587,90346.0,90345.0,0.05946]
[1765223585420,0.08976587,90346.0,90345.0,0.05946]
[1765223585737,0.08976587,90346.0,90345.0,0.001]
[1765223586935,0.03536587,90346.0,90345.0,0.05946]
[1765223587433,0.02429827,90346.0,90345.0,0.05946]
[1765223588837,0.02529827,90346.0,90345.0,0.05946]
[1765223593034,0.001,90346.0,90345.0,0.05946]
[1765223594233,0.02535362,90346.0,90345.0,0.05946]
[1765223594439,0.001,90346.0,90345.0,0.05946]
[1765223594940,0.0110661,90359.0,90358.0,0.055]
[1765223595234,0.03541919,90359.0,90358.0,0.055]
[1765223596132,0.03741919,90359.0,90358.0,0.055]
[1765223596740,0.02635309,90359.0,90358.0,0.06676814]
[1765223598231,0.02635309,90359.0,90358.0,0.055]
[1765223598641,0.05355309,90359.0,90358.0,0.055]
[1765223598940,0.08075309,90359.0,90358.0,0.055]
[1765223602750,0.05355309,90359.0,90358.0,0.055]
[1765223604048,0.08075309,90359.0,90358.0,0.055]
[1765223609443,0.05355309,90359.0,90358.0,0.055]
[1765223610249,0.09181909,90359.0,90358.0,0.055]
[1765223610637,0.08075309,90359.0,90358.0,0.055]
[1765223611252,0.09181909,90359.0,90358.0,0.055]
[1765223611851,0.02635309,90359.0,90358.0,0.055]
[1765223612352,0.01869388,90359.0,90358.0,0.055]
[1765223612546,0.002,90359.0,90358.0,0.055]
[1765223613544,0.00110663,90365.0,90364.0,0.055]
[1765223613745,0.00110663,90365.0,90364.0,0.0660654]
[1765223614148,0.01217193,90365.0,90364.0,0.055]
[1765223614349,0.06657193,90365.0,90364.0,0.055]
[1765223614554,0.03937193,90365.0,90364.0,0.055]
[1765223614758,0.01217193,90365.0,90364.0,0.055]
[1765223615260,0.01217193,90365.0,90364.0,0.064]
[1765223615856,0.06657193,90365.0,90364.0,0.063]
[1765223616559,0.06657193,90365.0,90364.0,0.061]
[1765223616861,0.06657193,90365.0,90364.0,0.063]
[1765223617163,0.02830663,90365.0,90364.0,0.063]
[1765223617360,0.00110663,90365.0,90364.0,0.062]
[1765223617563,0.00110663,90365.0,90364.0,0.061]
[1765223620655,0.06657193,90365.0,90364.0,0.061]
[1765223621762,0.06657193,90365.0,90364.0,0.063]
[1765223622152,0.06657193,90365.0,90364.0,0.056]
[1765223622461,0.06657193,90365.0,90364.0,0.062]
[1765223622657,0.06657193,90365.0,90364.0,0.063]
[1765223623359,0.06657193,90365.0,90364.0,0.061]
[1765223623564,0.06657193,90365.0,90364.0,0.062]
[1765223623760,0.06657193,90365.0,90364.0,0.061]
[1765223624265,0.06657193,90365.0,90364.0,0.06]
[1765223624459,0.09086407,90365.0,90364.0,0.059]
[1765223625056,0.09086407,90365.0,90364.0,0.004]
[1765223625765,0.09086407,90365.0,90344.0,0.01734]
[1765223625766,0.15038108,90365.0,90344.0,0.01734]
[1765223625964,0.0654671,90350.0,90349.0,0.05560606]
[1765223626265,0.08975924,90350.0,90349.0,0.07286606]
[1765223626853,0.08975924,90350.0,90349.0,0.07486606]
[1765223627052,0.08975924,90350.0,90349.0,0.08186606]
[1765223627670,0.08975924,90350.0,90349.0,0.00916606]
[1765223628070,0.08975924,90350.0,90349.0,0.03675606]
[1765223629070,0.08975924,90350.0,90349.0,0.00916606]
[1765223629971,0.14946595,90350.0,90349.0,0.00916606]
[1765223630268,0.14939867,90350.0,90349.0,0.00916606]
[1765223630469,0.14939867,90350.0,90349.0,0.06460606]
[1765223630667,0.08975924,90350.0,90349.0,0.06460606]
[1765223630877,0.08975924,90350.0,90349.0,0.00916606]
[1765223631169,0.08975924,90350.0,90349.0,0.00216606]
[1765223631170,0.15139867,90350.0,90349.0,0.00216606]
[1765223631370,0.09175924,90350.0,90349.0,0.00216606]
[1765223631565,0.08975924,90350.0,90349.0,0.00216606]
[1765223631761,0.09175924,90350.0,90349.0,0.00216606]
[1765223631963,0.09275924,90350.0,90349.0,0.05560606]
[1765223632566,0.09275924,90350.0,90349.0,0.02775606]
[1765223632761,0.09275924,90350.0,90349.0,0.00016606]
[1765223633876,0.09275924,90350.0,90349.0,0.07286606]
[1765223634491,0.03835924,90350.0,90349.0,0.07286606]
[1765223635170,0.02729214,90350.0,90349.0,0.07286606]
[1765223636486,0.05449214,90350.0,90349.0,0.07286606]
[1765223636883,0.08169214,90350.0,90349.0,0.07286606]
[1765223638585,0.02729214,90350.0,90349.0,0.07286606]
[1765223638980,0.003,90350.0,90349.0,0.07286606]
[1765223639585,0.00110663,90365.0,90364.0,0.05544]
[1765223639981,0.02533723,90365.0,90364.0,0.05544]
[1765223640382,0.02533723,90365.0,90364.0,0.0665054]
[1765223640678,0.05963943,90380.0,90379.0,0.05544]
[1765223640886,0.18477944,90390.0,90389.0,0.05544]
[1765223640887,0.00110632,90390.0,90389.0,0.05544]
[1765223641490,0.05963943,90403.0,90402.0,0.05544]
[1765223641698,0.05993943,90411.0,90404.0,0.05544]
[1765223641998,0.05993943,90411.0,90403.0,0.0110606]
[1765223641999,0.02816,90411.0,90410.0,0.05544]
[1765223642692,0.05601,90411.0,90410.0,0.05544]
[1765223643295,0.05901,90411.0,90410.0,0.05544]
[1765223643591,0.0033,90411.0,90410.0,0.05544]
[1765223646085,0.003,90411.0,90410.0,0.05544]
[1765223647101,0.03126,90411.0,90410.0,0.05544]
[1765223647300,0.05907,90411.0,90410.0,0.05544]
[1765223648191,0.0671309,90401.0,90400.0,0.02958]
[1765223649304,0.0681309,90401.0,90400.0,0.05909]
[1765223649689,0.05607,90394.0,90393.0,0.05925596]
[1765223650497,0.05607,90394.0,90393.0,0.02974596]
[1765223650691,0.05607,90394.0,90393.0,0.00016596]
[1765223650897,0.05607,90394.0,90393.0,0.00116596]
[1765223651299,0.0671328,90385.0,90384.0,0.02958]
[1765223651602,0.05607,90379.0,90378.0,0.07635]
[1765223651991,0.25776491,90388.0,90387.0,0.02958]
[1765223652196,0.0671325,90388.0,90387.0,0.02958]
[1765223653000,0.0671325,90388.0,90387.0,0.06009]
[1765223653200,0.0671325,90388.0,90387.0,0.07614]
[1765223653399,0.0393225,90388.0,90387.0,0.07614]
[1765223653807,0.0692425,90388.0,90387.0,0.07614]
[1765223654703,0.05818,90388.0,90387.0,0.07614]
[1765223654909,0.29810159,90397.0,90396.0,0.05741]
[1765223655110,0.09267062,90397.0,90396.0,0.05741]
[1765223655507,0.06275062,90397.0,90396.0,0.07514]
[1765223656011,0.02523922,90397.0,90396.0,0.07514]
[1765223656213,0.06375062,90397.0,90396.0,0.07514]
[1765223656511,0.09367062,90397.0,90396.0,0.07514]
[1765223656708,0.06959668,90397.0,90396.0,0.07514]
[1765223656908,0.05737,90388.0,90387.0,0.01773]
[1765223657113,0.05737,90388.0,90387.0,0.07514]
[1765223657711,0.05737,90388.0,90387.0,0.05741]
[1765223658507,0.01771,90396.0,90378.0,0.07483596]
[1765223658508,0.0684336,90379.0,90378.0,0.07483596]
[1765223659106,0.05737,90379.0,90378.0,0.07483596]
[1765223659511,0.0684328,90385.0,90384.0,0.05741]
[1765223661510,0.0684328,90385.0,90384.0,0.05841]
[1765223662117,0.0684328,90385.0,90384.0,0.05741]
[1765223662316,0.0684328,90385.0,90384.0,0.06141]
[1765223662817,0.0684328,90385.0,90384.0,0.004]
[1765223663325,0.09256403,90385.0,90384.0,0.004]
[1765223664618,0.0110636,90379.0,90378.0,0.00016596]
[1765223664818,0.0684336,90379.0,90378.0,0.00016596]
[1765223665009,0.09256483,90379.0,90378.0,0.00016596]
[1765223666128,0.09256483,90379.0,90378.0,0.00116596]
[1765223667411,0.08150123,90379.0,90340.0,0.00110694]
[1765223667613,0.28687491,90361.0,90360.0,0.07514]
[1765223667815,0.08150123,90361.0,90360.0,0.07514]
[1765223668311,0.02413123,90361.0,90360.0,0.07514]
[1765223668516,0.0684356,90363.0,90362.0,0.05741]
[1765223668716,0.08156798,90363.0,90362.0,0.05741]
[1765223669923,0.08156798,90363.0,90362.0,0.06141]
[1765223670323,0.05737,90363.0,90362.0,0.06141]
[1765223670828,0.05737,90363.0,90362.0,0.06241]
[1765223671017,0.05737,90363.0,90362.0,0.05841]
[1765223671218,0.05737,90363.0,90362.0,0.06041]
[1765223677231,0.08157724,90363.0,90362.0,0.06041]
[1765223685832,0.08157724,90363.0,90362.0,0.003]
[1765223686034,0.08157724,90363.0,90362.0,0.05815]
[1765223686837,0.08157724,90363.0,90362.0,0.05715]
[1765223687035,0.08157724,90363.0,90362.0,0.05515]
[1765223687221,0.08157724,90363.0,90362.0,0.05615]
[1765223691234,0.08157724,90363.0,90362.0,0.001]
[1765223692043,0.08157724,90363.0,90362.0,0.05615]
[1765223692340,0.08157724,90363.0,90362.0,0.02801]
[1765223693139,0.08157724,90363.0,90362.0,0.02701]
[1765223693946,0.08257724,90363.0,90362.0,0.02701]
[1765223694236,0.08257724,90363.0,90362.0,0.05515]
[1765223696234,0.08157724,90363.0,90362.0,0.05515]
[1765223700539,0.05584,90341.0,90340.0,0.00110694]
[1765223700740,0.08004724,90341.0,90340.0,0.00110694]
[1765223701049,0.08004724,90341.0,90340.0,0.05882694]
[1765223701954,0.02420724,90341.0,90340.0,0.05882694]
[1765223702244,0.00016596,90350.0,90349.0,0.05772]
[1765223702436,0.02453994,90350.0,90349.0,0.05772]
[1765223703449,0.02453994,90350.0,90349.0,0.05972]
[1765223704447,0.08037994,90350.0,90349.0,0.05972]
[1765223704848,0.02453994,90350.0,90349.0,0.05972]
[1765223705848,0.02453994,90350.0,90349.0,0.06072]
[1765223707248,0.08037994,90350.0,90349.0,0.003]
[1765223708847,0.08037994,90350.0,90349.0,0.001]
[1765223709049,0.05584,90341.0,90340.0,0.05882694]
[1765223709248,0.08021398,90341.0,90340.0,0.05882694]
[1765223709844,0.02437398,90341.0,90340.0,0.06989534]
[1765223710236,0.02437398,90341.0,90340.0,0.07189534]
[1765223711644,0.05600596,90350.0,90349.0,0.07468]
[1765223711843,0.08017516,90350.0,90349.0,0.07468]
[1765223712451,0.08017516,90350.0,90349.0,0.05772]
[1765223712849,0.08017516,90350.0,90349.0,0.06072]
[1765223713352,0.08017516,90350.0,90349.0,0.05872]
[1765223713548,0.08017516,90350.0,90349.0,0.06072]
[1765223714149,0.08017516,90350.0,90349.0,0.003]
[1765223714648,0.0682593,90332.0,90331.0,0.00016596]
[1765223714839,0.0924285,90332.0,90331.0,0.00016596]
[1765223715048,0.0682602,90325.0,90324.0,0.00011043]
[1765223715248,0.0924294,90325.0,90324.0,0.00011043]
[1765223715649,0.0813592,90325.0,90324.0,0.05755043]
[1765223715955,0.0813592,90325.0,90324.0,0.00011043]
[1765223716256,0.0682613,90316.0,90315.0,0.0012733]
[1765223716452,0.0924305,90316.0,90315.0,0.0012733]
[1765223716958,0.05719,90296.0,90295.0,0.05744]
[1765223717453,0.00010179,90296.0,90295.0,0.05744]
[1765223718860,0.00010179,90296.0,90295.0,0.06344]
[1765223719247,0.02768179,90296.0,90295.0,0.06244]
[1765223719564,0.00010179,90296.0,90295.0,0.06244]
[1765223721664,0.05729179,90296.0,90295.0,0.06244]
[1765223721852,0.05729179,90296.0,90295.0,0.05944]
[1765223722051,0.00010179,90296.0,90295.0,0.06244]
[1765223722452,0.00010179,90296.0,90295.0,0.05944]
[1765223722655,0.00010179,90296.0,90295.0,0.06444]
[1765223722857,0.00010179,90296.0,90295.0,0.06344]
[1765223724663,0.00010179,90296.0,90295.0,0.06044]
[1765223724862,0.00010179,90296.0,90295.0,0.06244]
[1765223725364,0.00010179,90296.0,90295.0,0.06544]
[1765223726062,0.00016606,90305.0,90304.0,0.0859228]
[1765223728164,0.0110702,90325.0,90324.0,0.02797]
[1765223728367,0.0386502,90325.0,90324.0,0.05744]
[1765223729457,0.02758,90325.0,90324.0,0.05844]
[1765223729761,0.05735606,90334.0,90333.0,0.05744]
[1765223730064,0.09250286,90334.0,90333.0,0.05744]
[1765223730259,0.06289286,90334.0,90333.0,0.05744]
[1765223730657,0.09250286,90334.0,90333.0,0.02947]
[1765223731058,0.08143376,90334.0,90333.0,0.02947]
[1765223731254,0.09250286,90334.0,90333.0,0.02947]
[1765223731458,0.09250286,90334.0,90333.0,0.03047]
[1765223731757,0.09250286,90334.0,90333.0,0.03247]
[1765223731965,0.09250286,90334.0,90333.0,0.06044]
[1765223732156,0.02524376,90334.0,90333.0,0.05744]
[1765223732360,0.00116606,90334.0,90333.0,0.05744]
[1765223732556,0.02874606,90334.0,90333.0,0.05744]
[1765223733069,0.05835606,90334.0,90333.0,0.05744]
[1765223733264,0.02874606,90334.0,90333.0,0.05744]
[1765223733570,0.00116606,90334.0,90333.0,0.05844]
[1765223734265,0.02774606,90334.0,90333.0,0.05944]
[1765223734466,0.02774606,90334.0,90333.0,0.06044]
[1765223734668,0.05735606,90334.0,90333.0,0.06044]
[1765223740368,0.08147539,90334.0,90333.0,0.003]
[1765223740566,0.08147539,90334.0,90333.0,0.06044]
[1765223741182,0.05735606,90334.0,90333.0,0.06044]
[1765223741380,0.05735606,90334.0,90333.0,0.05944]
[1765223741679,0.08146889,90334.0,90333.0,0.05944]
[1765223742379,0.08146889,90334.0,90333.0,0.05844]
[1765223742975,0.09253799,90334.0,90333.0,0.05844]
[1765223743173,0.09253799,90334.0,90333.0,0.05646]
[1765223743378,0.09253799,90334.0,90333.0,0.05546]
[1765223743379,0.08146889,90334.0,90333.0,0.05546]
[1765223743580,0.08146889,90334.0,90333.0,0.05846]
[1765223743981,0.05185889,90334.0,90333.0,0.05646]
[1765223744283,0.08113889,90334.0,90333.0,0.05646]
[1765223745073,0.08113889,90334.0,90333.0,0.05546]
[1765223745274,0.08113889,90334.0,90333.0,0.05746]
[1765223745675,0.08113889,90334.0,90333.0,0.05846]
[1765223745878,0.08113889,90334.0,90333.0,0.03099]